Cogmind - Beta 10.2 *** ADVENTURER MODE // 2021.04.27 @ 18:09:47 Player: Lonely Shikari Result: Destroyed by as-94037 with Assembled Heavy Rifle Performance ------------- Evolutions (0) 0 Regions Visited (2) 400 Robots Destroyed (4) 20 Value Destroyed (87) 87 Prototype IDs (0) 0 Alien Tech Used (0) 0 Bonus (0) 0 TOTAL SCORE: 507 Bonus ------- None Cogmind --------- Core Integrity 0/250 Matter 232/300 Energy 100/100 System Corruption 0% Temperature Cool (153) Movement Core (550) Ox10 Location -10/Mines Parts ------- > --- POWER (1) -------- (None) > --- PROPULSION (2) --- (None) > --- UTILITY (2) ------ High-capacity Storage Unit > --- WEAPON (2) ------- (None) > --- INVENTORY (12) --- Mining Laser Peak State ------------ > --- POWER ------------ Ion Engine > --- PROPULSION ------- Aluminum Leg Aluminum Leg > --- UTILITY ---------- Small Storage Unit Improved Sensor Array > --- WEAPON ----------- EM Pulse Gun Improved Light Cannon > --- INVENTORY -------- Ion Engine Light Treads Light Treads Small Laser Light Assault Rifle [Rating: 9] Favorites ----------- Power Ion Engine Engine Ion Engine Propulsion Aluminum Leg Treads Light Treads Leg Aluminum Leg Utility Improved Sensor Array Device Improved Sensor Array Storage High-capacity Storage Unit Protection Light Armor Plating Weapon Improved Light Cannon Energy Gun EM Pulse Gun Ballistic Gun Assault Rifle Ballistic Cannon Improved Light Cannon Build | -11 -10 -10 ------- Run | Scr Mat Min Slots Evolved . | . . . Power . | . . . Propulsion . | . . . Utility . | . . . Weapon . | . . . Parts Attached 10 | . 3 7 Power 1 | . . 1 Engine 1 | . . 1 Core . | . . . Reactor . | . . . Propulsion 3 | . . 3 Treads 2 | . . 2 Leg 1 | . . 1 Wheel . | . . . Hover . | . . . Flight . | . . . Utility 3 | . 2 1 Device 1 | . 1 . Storage 1 | . 1 . Processor . | . . . Hackware . | . . . Protection 1 | . . 1 Artifact . | . . . Weapon 3 | . 1 2 Energy Gun 1 | . . 1 Energy Cannon . | . . . Ballistic Gun 1 | . . 1 Ballistic Cannon 1 | . 1 . Launcher . | . . . Special Weapon . | . . . Impact Weapon . | . . . Slashing Weapon . | . . . Piercing Weapon . | . . . Special Melee Weapon . | . . . Unidentified Prototypes . | . . . Parts Lost 12 | . . 12 Power 2 | . . 2 Propulsion 4 | . . 4 Utility 2 | . . 2 Weapon 4 | . . 4 Highest Loss Streak 12 | . . 12 Average Slot Usage (%) 98 | . 100 95 Engine 13 | . 14 13 Treads 1 | . . 2 Leg 26 | . 28 24 Device 13 | . 14 12 Storage 14 | . 14 14 Energy Gun 13 | . 14 11 Ballistic Cannon 13 | . 13 13 Naked Turns . | . . . Heaviest Build 44 | 12 44 44 Greatest Support 20 | 20 20 20 Greatest Overweight (x) 10 | . 2 10 Average Overweight (x) 1 | . . 2 Largest Inventory Capacity 12 | 6 12 12 Average Capacity 9 | 6 7 12 Most Carried 8 | 5 7 8 Average Carried 5 | 5 5 6 Final Capacity 12 | 6 12 12 Final Carried 7 | 4 7 1 Class Distribution -------------------- 100% | Mutant Dominant Class ---------------- Mutant | -10/Materials Mutant | -10/Mines Resources | -11 -10 -10 ----------- Run | Scr Mat Min Matter Collected 248 | 171 18 59 Remotely . | . . . Salvage Created 108 | . 31 77 Parts 4 | . 1 3 Haulers Intercepted . | . . . Recyclers Shooed . | . . . Parts Field Recycled . | . . . Retrieved Matter . | . . . Parts Self-Destructed . | . . . Prevented . | . . . Kills | -11 -10 -10 ------- Run | Scr Mat Min Combat Hostiles Destroyed 7 | . 3 4 Guns 4 | . 1 3 Cannons 1 | . . 1 AOE 2 | . 2 . Classes Destroyed 3 | . 1 2 Swarmer 3 | . 3 . Grunt 1 | . . 1 Assembled 3 | . . 3 Best Kill Streak 3 | . 3 3 Combat Bots Only 3 | . 3 3 Max Kills in Single Turn 2 | . 2 1 Gunslinging . | . . . Exploded 2 | . 2 . Melee . | . . . Uniques/NPCs Destroyed . | . . . Combat | -11 -10 -10 -------- Run | Scr Mat Min Damage Taken 1378 | . 34 1344 Core 258 | . 7 251 Absorbed by Shields . | . . . Core Remaining (%) 100 | 100 . . Volleys Fired 17 | . 5 12 Largest 2 | . 2 2 Hottest 79 | . 79 79 Shots Fired 33 | . 10 23 Gun 17 | . 5 12 Cannon 16 | . 5 11 Launcher . | . . . Special . | . . . Kinetic 20 | . 5 15 Thermal 2 | . . 2 Explosive . | . . . Electromagnetic 11 | . 5 6 Robot Hit Streak 12 | . 2 12 Robot Miss Streak 3 | . 2 3 Penetration Max . | . . . Secondary Targets . | . . . Shots Hit Robots 21 | . 5 16 Core Hits 11 | . 3 8 Critical Hits . | . . . Critical Kills . | . . . Critical Parts Destroyed . | . . . Melee Attacks . | . . . Impact . | . . . Slashing . | . . . Piercing . | . . . Sneak Attacks . | . . . Combat Hostiles . | . . . Follow-up Attacks . | . . . Damage Inflicted 404 | . 154 250 Guns 159 | . 33 126 Cannons 146 | . 22 124 Explosions 99 | . 99 . Melee . | . . . Ramming . | . . . Kinetic 200 | . 22 178 Thermal 122 | . 99 23 Explosive . | . . . Electromagnetic 82 | . 33 49 Impact . | . . . Slashing . | . . . Piercing . | . . . Highest Corruption . | . . . Average Corruption . | . . . Corruption Purged . | . . . Overload Shots . | . . . Overflow Damage 17 | . 17 . Projectiles 17 | . 17 . Explosions . | . . . Melee . | . . . Knockbacks 2 | . . 2 Impact . | . . . Kinetic 2 | . . 2 Secondary . | . . . Self-Inflicted Damage . | . . . Shots . | . . . Rammed . | . . . Targets Rammed . | . . . Kicked . | . . . Crushed . | . . . Highest Temperature 211 | . 90 211 Average Temperature 92 | . 47 112 Received Heat Transfer 372 | . . 372 Siege Activations . | . . . Robots Corrupted . | . . . Combat Hostiles . | . . . Parts Fried . | . . . Impact Corruptions . | . . . Robots Melted . | . . . Combat Hostiles . | . . . Parts Melted 1 | . 1 . Heat Transferred 200 | . 150 50 Parts Sabotaged . | . . . Parts Stolen . | . . . Parts Stripped . | . . . Power Chain Reactions 1 | . 1 . Missiles Intercepted . | . . . Alert | -11 -10 -10 ------- Run | Scr Mat Min Peak Influence 93 | . 93 75 Initial 30 | . . 30 Average 43 | . 44 42 Maximum Alert Level . | . . . Low Security (%) 100 | 100 100 100 Level 1 . | . . . Level 2 . | . . . Level 3 . | . . . Level 4 . | . . . Level 5 . | . . . High Security . | . . . Max Security . | . . . Squads Dispatched . | . . . Investigation . | . . . Extermination . | . . . Reinforcement . | . . . Assault . | . . . Garrison . | . . . Intercept . | . . . Construction Impeded . | . . . Haulers Reinforced . | . . . Stealth | -11 -10 -10 --------- Run | Scr Mat Min Distress Signals . | . . . Communications Jammed . | . . . Distress Signals . | . . . Times Spotted 23 | . 3 20 Peak Tracking Total 17 | . 3 17 Tactical Retreats 1 | . . 1 Traps | -11 -10 -10 ------- Run | Scr Mat Min Traps Triggered . | . . . Indirectly . | . . . Trap Hack Attempts . | . . . Triggered . | . . . Disarmed . | . . . Reprogrammed . | . . . Reused . | . . . Traps Extracted . | . . . Installed . | . . . Triggered . | . . . Machines | -11 -10 -10 ---------- Run | Scr Mat Min Machines Disabled 1 | . 1 . Max in Single Turn 1 | . 1 . Machines Sabotaged . | . . . Garrisons Compromised . | . . . Overloaded Fab Kills . | . . . Fab Network Shutdowns . | . . . Hacking | -11 -10 -10 --------- Run | Scr Mat Min Machines Accessed 1 | . 1 . Terminals 1 | . 1 . Fabricators . | . . . Repair Stations . | . . . Recycling Units . | . . . Scanalyzers . | . . . Garrison Access . | . . . Total Hacks 7 | . 7 . Successful 5 | . 5 . Failed 2 | . 2 . Catastrophic 1 | . 1 . Database Lockouts . | . . . Manual 7 | . 7 . Terminals 7 | . 7 . Fabricators . | . . . Repair Stations . | . . . Recycling Units . | . . . Scanalyzers . | . . . Garrison Access . | . . . Terminal Hacks 2 | . 2 . Level Access Points 1 | . 1 . Branch Access Points 1 | . 1 . Fabricator Hacks . | . . . Repair Station Hacks . | . . . Recycling Unit Hacks . | . . . Scanalyzer . | . . . Garrison Access Hacks . | . . . Unauthorized Hacks 3 | . 3 . Terminals 3 | . 3 . Track 1 | . 1 . Botnet 1 | . 1 . Disrupt 1 | . 1 . Fabricators . | . . . Repair Stations . | . . . Recycling Units . | . . . Scanalyzers . | . . . Garrison Access . | . . . Data Cores Recovered . | . . . Used . | . . . Hacking Detections 1 | . 1 . Full Trace Events . | . . . Feedback Events . | . . . Feedback Blocked . | . . . Robot Schematics Acquired . | . . . Robots Built . | . . . Matter . | . . . Time . | . . . Total Robot Build Rating . | . . . Part Schematics Acquired . | . . . Parts Built . | . . . Matter . | . . . Time . | . . . Total Part Build Rating . | . . . Parts Repaired . | . . . Time . | . . . Parts Recycled . | . . . Recycled Matter . | . . . Retrieved Matter . | . . . Retrieved Components . | . . . Parts Scanalyzed . | . . . Part Schematics Acquired . | . . . Parts Damaged . | . . . Bothacking | -11 -10 -10 ------------ Run | Scr Mat Min Used RIF Installer . | . . . Robots Hacked . | . . . Non-combat . | . . . Combat . | . . . Robot Hacks Applied . | . . . Relay Couplers Released . | . . . Robots Rewired . | . . . Allies Hacked . | . . . Hacks Repelled . | . . . Allies | -11 -10 -10 -------- Run | Scr Mat Min Total Allies . | . . . Largest Group . | . . . Highest-Rated Group . | . . . Highest-Rated Ally . | . . . Total Orders . | . . . Ally Attacks . | . . . Total Damage . | . . . Kills . | . . . Allies Corrupted . | . . . Allies Melted . | . . . Intel | -11 -10 -10 ------- Run | Scr Mat Min Robot Analysis Total . | . . . Derelict Logs Recovered . | . . . Drone Launches . | . . . Drone Recoveries . | . . . Exploration | -11 -10 -10 ------------- Run | Scr Mat Min Turns Passed 473 | 1 275 197 Spaces Moved 255 | 1 168 86 Core 1 | . . 1 Treads 3 | . . 3 Legs 251 | 1 168 82 Wheels . | . . . Hover . | . . . Flight . | . . . Fastest Speed 120 | 120 120 180 Average Speed 151 | 120 135 184 Slowest Speed 550 | 120 180 550 Overloaded Moves . | . . . Propulsion Burnouts . | . . . Robots Hopped . | . . . Cave-ins Triggered . | . . . Exploration Rate (%) 21 | 2 27 36 Regions Visited 2 Branch Regions 1 Pre-discovered Areas . | . . . Known Exits Taken 1 | . 1 . Unknown Exits Taken 1 | 1 . . Scrap Searched . | . . . Spaces Dug . | . . . Terrain Destroyed 6 | . 3 3 Melee . | . . . Projectile 3 | . . 3 AOE 3 | . 3 . Terrain Rammed . | . . . Walls Destroyed . | . . . Machines Disabled . | . . . Actions | -11 -10 -10 --------- Run | Scr Mat Min Total 314 | 2 206 106 Wait 25 | . 25 . Move 253 | . 167 86 Hop . | . . . Pick Up 3 | . 3 . Fast Attach 2 | . 2 . Attach 6 | . . 6 Detach 1 | . 1 . Swap 2 | . 1 1 Drop 5 | 2 2 1 Fire 17 | . 5 12 Melee . | . . . Ram . | . . . Kick . | . . . Crush . | . . . Escape Stasis . | . . . Rewire . | . . . Trap . | . . . Miscellaneous . | . . . Route ------- -11/Scrapyard -10/Materials (discovered 4 exits: *Mat x3 / *Min) -10/Mines History --------- Turn | Location | Event 2 | -11/Scrapyard | Discovered new exit (range 0) 2 | -11/Scrapyard | Entered Materials 38 | -10/Materials | Identified exit to Mines 38 | -10/Materials | Identified exit to Materials 277 | -10/Materials | Entered Mines 313 | -10/Mines | Build established: Mutant 410 | -10/Mines | Assembled infested the area 468 | -10/Mines | Core integrity fell below 50% 473 | -10/Mines | Core integrity fell below 20% 474 | -10/Mines | Destroyed by as-94037 with Assembled Heavy Rifle Last Messages --------------- 00451_ Imp. Sensor Array destroyed. 00451_ Knocked back. 00451_ as-17323 knocked back. 00452_ as-48574 destroyed. 00452_ Aluminum Leg destroyed. 00452_ U-05 Engineer destroyed. 00455_ The unstable cave ceiling collapses. 00456_ as-17323 knocked back. 00457_ as-17323 destroyed. 00459_ as-36671 destroyed. 00459_ Assault Rifle destroyed. 00462_ Lgt. Armor Plating destroyed. 00465_ Lgt. Treads destroyed. 00466_ Imp. Light Cannon destroyed. 00466_ as-70082 destroyed. 00468_ Sml. Laser destroyed. 00468_ Acquired 1 matter. 00470_ Ion Engine destroyed. 00471_ The unstable cave ceiling collapses. 00472_ Lgt. Treads destroyed. Map ----- +----------------------------------------------------+ | ??????????????# ?????# #????????????????? | | ??????????????# ?????## #????????????????? | | ???????????????# ????## #????????????????? | | ?????????????### #??## #????????????????? | | ????????????? ### #????????????????? | | ????????????? #####????????????? | | ????????????????# #????????????? | | ????????????????## # #????????????? | | ?????????????????#### ####### #????????????? | | ????????????????????## ##??????? ???????????? | | ?????????????????????##### #?????????##??????????? | | ?????????????????????????# #?????????????????????? | | ?????????????????????##### #############?????????? | | ???????????????????### *%| #?????????? | | ??????????????????## # # ! #?????????? | | ??????????????????# #### ###### ????? | | ??????????????????? # #??# #?????????????????? | | ??????????????###??# ###### #?????????????????? | | ????????????### ###=*% a# ## ###???????????????? | | ???????????? u %%=% #???????????????? | | ????????????? a*a = #???????????????? | | ??????????????????#a aaa *%!#????????????????? | | ???????????????????# a #????????????????? | | ??????????????????## a ######???????????? | | ??????????????????# ????????? | | ??????????????????# @ ######??????????? | | ??????????????????## #########???????????????? | | ???????????????????# % #??????????????????????? | | ???????????????????# #?????????????????????? | | ???????????????????# ????????????????????? | | ???????????????????# #???????????????????? | | ???????????????????## ####???????????????????? | | ????????????????????#######??????????????????????? | | ?????????????????????????????????????????????????? | | ?????????????????????????????????????????????????? | | ?????????????????????????????????????????????????? | | | | | | | | | | | | | | | | | | | | | | | | | | | | | +----------------------------------------------------+ Best States ------------- Heat Dissipation 25 Energy Generation 10 Energy Capacity 250 Matter Stores 263 Matter Capacity 300 Sight Range 16 Robot Scan Range 13 Terrain Scan Density 10 Armor Coverage 150 Resistance: KI 20 Resistance: TH 20 Resistance: EX 20 Resistance: EM 20 Resistance: I 20 Resistance: S 20 Resistance: P 20 Evasion (%) 40 Recoil Reduction 1 Offensive Hacking 10 Item Schematics ----------------- None Robot Schematics ------------------ None Fabricated ------------ Nothing Alien Tech Used ----------------- None Achievements -------------- None Challenges ------------ None Game ------ Seed PrecisionArmoredWarhead Manual? 0 Play Time 00:08:33 Cumulative 85.3 hours Start 2021.04.27 @ 18:03:34 End 2021.04.27 @ 18:09:47 Sessions 1 Manual Loads 0 Difficulty Adventurer Special Mode None Game No. 20 Rogue 0 Adventurer 20 Explorer 0 Win Type - Total 0 Types 0/0/0/0/0/0/0/0/0 Lore% 44 Gallery% 54 Achievement% 37 Wizard Run 0 Options --------- ASCII 0 Keyboard 1 Movement Numpad Keybinds 0 Fullscreen 1 Font 14/X11Bold Map View 84x54 Tactical HUD 1 Map Filters NONE Filters NONE Steam 1 RUN: 1f71a5a1-5504-4382-a51b-0bbba64805c4